[Event "SVK ECo-C Extraliga 2021-22"]
[Site "Slovakia"]
[Date "2022.05.08"]
[Round "7.2"]
[White "Kraus, Tomas"]
[Black "Michalik, Peter"]
[Result "1-0"]
[ECO "D35"]
[WhiteElo "2472"]
[BlackElo "2579"]
[Annotator "TA"]
[PlyCount "97"]
[EventDate "2021.10.21"]
[EventType "team-tourn"]
[EventCountry "SVK"]
[SourceTitle "playchess.com"]
[Source "ChessBase"]
[SourceQuality "1"]
[TimeControl "40/5400+30:1800+30"]

{[%evp 12,97,15,19,48,24,35,22,25,23,28,9,10,12,23,11,12,10,0,0,0,0,5,0,0,0,5,4,4,5,6,9,10,9,11,10,11,14,35,38,28,34,96,96,96,96,96,91,90,79,90,93,100,100,100,94,95,96,102,103,104,95,95,95,76,80,104,95,104,104,104,104,104,104,104,104,145,104,531,535,684,671,1535,1358,1124,975,616,597]} 1. c4 {[%emt 0:00:29]} e6 {[%emt 0:00:15]} 2. Nc3 {[%emt 0:00:43]} d5 {[%emt 0:00:07]} 3. d4 {[%emt 0:00:41]} Nf6 {[%emt 0:00:09]} 4. cxd5 {[%emt 0:00:29]} exd5 {[%emt 0:00:07]} 5. Bg5 {[%emt 0:00:38][%cal Bc1g5,Bg5h4,Bh4g3,Bg3f4][%mdl 32]} c6 {[%emt 0:00:08]} 6. e3 {[%emt 0:00:21]} h6 {[%emt 0:00:32]} 7. Bh4 {[%emt 0:01:01]} Be6 {[%emt 0:00:12] D35: Queen's Gambit Declined: Exchange Variation.} 8. Bd3 {[%emt 0:03:16]} Nbd7 {[%emt 0:00:11]} 9. Bg3 {[%emt 0:12:17]} Be7 {[%emt 0:08:24] The position is equal.} 10. Nge2 {[%emt 0:05:15]} Nh5 {[%emt 0:00:26] [#]} 11. Nf4 $146 {[%emt 0:01:16]} ({Predecessor:} 11. Qc2 O-O 12. O-O Nxg3 13. Nxg3 Nf6 14. a3 Bd6 15. b4 Ng4 16. Nce2 Qh4 17. h3 Nxe3 18. fxe3 Bxg3 19. Nxg3 Qxg3 {0-1 (96) Moreto Quintana,A (2092)-Favaloro,A (2354) Trieste 2019}) 11... Nxf4 {[%emt 0:00:08]} 12. Bxf4 {[%emt 0:00:03]} O-O {[%emt 0:04:07]} 13. Qd2 {[%emt 0:04:40]} Nb6 {[%emt 0:04:19]} 14. O-O {[%emt 0:07:47]} Nc4 {[%emt 0:00:25]} 15. Bxc4 {[%emt 0:03:25]} dxc4 {[%emt 0:01:34]} 16. e4 {[%emt 0:02:34]} Bb4 {[%emt 0:07:08]} 17. a3 {[%emt 0:04:12]} Ba5 {[%emt 0:00:18]} 18. Rad1 {[%emt 0:02:40]} Qh4 {[%emt 0:02:10]} 19. Bg3 {[%emt 0:05:57]} Qh5 {[%emt 0:03:15]} 20. d5 {[%emt 0:05:56]} cxd5 {[%emt 0:10:36]} (20... Bxc3 $5 21. bxc3 cxd5 $11) 21. exd5 {[%emt 0:00:04]} Rfd8 {[%emt 0:00:25]} 22. d6 {[%emt 0:02:20]} Rac8 {[%emt 0:00:08]} 23. Rfe1 {[%emt 0:02:04]} Rc5 {[%emt 0:02:50]} 24. Qd4 {[%emt 0:05:09]} Bb6 {[%emt 0:04:38]} 25. Qe4 {[%emt 0:02:19]} Rd7 {[%emt 0:05:35]} 26. Na4 {[%emt 0:03:01]} Rd5 {[%emt 0:01:40]} (26... Rc6 $14) 27. Rxd5 $16 {[%emt 0:00:44]} Qxd5 {[%emt 0:00:06]} 28. Qxd5 {[%emt 0:02:18]} Bxd5 {[%emt 0:00:05]} 29. Nxb6 {[%emt 0:00:18]} axb6 {[%emt 0:00:06][%mdl 4096] Endgame KRB-KRB} 30. Re8+ {[%emt 0:01:22]} Kh7 {[%emt 0:00:04]} 31. f3 {[%emt 0:02:36]} Bc6 {[%emt 0:02:22][%cal Od7d6]} 32. Rc8 {[%emt 0:01:05] White is more active.} g5 {[%emt 0:00:25] [#]} 33. Kf2 $1 {[%emt 0:03:28]} h5 {[%emt 0:00:42]} 34. h3 {[%emt 0:03:28]} h4 {[%emt 0:00:26]} 35. Bh2 {[%emt 0:00:53]} Kg6 {[%emt 0:05:32]} 36. Rg8+ {[%emt 0:01:53]} Kf5 {[%emt 0:00:48]} 37. Ke3 {[%emt 0:01:12]} f6 {[%emt 0:00:33]} 38. Kd4 {[%emt 0:01:52]} b5 {[%emt 0:00:12]} 39. Kc5 {[%emt 0:01:55]} Ke6 {[%emt 0:00:16]} 40. Re8+ {[%emt 0:05:17]} Kf5 {[%emt 0:03:17][%cal Od7d6]} 41. Re2 {[%emt 0:07:26]} Rf7 {[%emt 0:01:14]} 42. Kb6 {[%emt 0:02:41]} Rh7 {[%emt 0:00:45]} 43. Ka7 {[%emt 0:02:39]} Rf7 {[%emt 0:00:41]} 44. Kb8 {[%emt 0:02:17]} Rf8+ $2 {[%emt 0:00:20][%mdl 8192] [#] Loses the game.} (44... Kg6 $16 {is more resistant.}) 45. Kc7 $18 {[%emt 0:00:57] White is clearly winning.} Rf7+ {[%emt 0:09:09]} 46. Re7 {[%emt 0:03:31]} Rxe7+ {[%emt 0:00:13]} 47. dxe7 {[%emt 0:00:06]} Ke6 {[%emt 0:00:18]} 48. Kd8 {[%emt 0:00:08]} Kf7 {[%emt 0:00:03]} 49. f4 {[%emt 0:01:35] Weighted Error Value: White=0.02 (flawless) /Black=0.24 (precise)} 1-0

[Event "SVK ECo-C Extraliga 2021-22"]
[Site "Slovakia"]
[Date "2022.05.07"]
[Round "7.2"]
[White "Hujbert, Florian"]
[Black "Pulpan, Jakub"]
[Result "1-0"]
[ECO "C48"]
[WhiteElo "2396"]
[BlackElo "2418"]
[Annotator "TA"]
[PlyCount "149"]
[EventDate "2021.10.21"]
[EventType "team-tourn"]
[EventCountry "SVK"]
[SourceTitle "playchess.com"]
[Source "ChessBase"]
[SourceQuality "1"]
[TimeControl "40/5400+30:1800+30"]

{[%evp 9,149,18,35,0,0,-8,0,-2,5,-12,0,-12,-13,-22,-18,-24,-29,-18,-10,-18,0,-16,0,-31,-37,-44,16,13,20,2,25,21,38,47,39,49,56,53,46,31,68,70,83,56,58,45,50,51,59,55,44,39,39,39,38,13,39,31,65,48,74,53,125,119,160,150,177,179,184,171,243,124,208,156,215,0,208,148,222,223,220,192,168,187,251,152,139,124,175,166,210,209,272,285,285,285,372,380,371,333,357,357,349,354,344,283,308,296,322,323,421,316,387,297,299,297,445,348,695,670,730,713,669,662,29996,619,588,461,490,466,804,781,810,782,1079,1068,29976,29973,4611,4133,6819,5214]} 1. e4 {[%emt 0:00:05]} e5 {[%emt 0:00:33]} 2. Nf3 {[%emt 0:00:12]} Nc6 {[%emt 0:00:10]} 3. Nc3 {[%emt 0:00:07]} Nf6 {[%emt 0:00:40]} 4. Bb5 {[%emt 0:00:11]} Bd6 {[%emt 0:01:46]} 5. d3 {[%emt 0:00:21]} h6 {[%emt 0:04:20]} 6. h3 {[%emt 0:06:54] C48: Four Knights: 4 Bb5, replies other than 4...Bb4.} a6 {[%emt 0:07:05]} 7. Bxc6 {[%emt 0:05:55] was the old line (7.Ba4).} dxc6 {[%emt 0:04:12]} 8. Be3 {[%emt 0:01:05] The position is equal.} Be6 {[%emt 0:22:24]} 9. a3 {[%emt 0:09:43]} Qe7 {[%emt 0:03:07]} 10. Qe2 {[%emt 0:07:13] [#]} O-O-O $146 {[%emt 0:04:07]} ({Predecessor:} 10... c5 11. Nd2 b5 12. a4 b4 13. Nd1 Nd7 14. b3 Nf8 15. Nb2 Bd7 {1-0 (37) Razafindratsima,T (2341)-Sonis,F (2491) Tornelo INT 2021}) 11. b4 {[%emt 0:05:35]} Nd7 {[%emt 0:05:02]} 12. Na4 {[%emt 0:05:08]} f5 {[%emt 0:03:00]} 13. exf5 $1 {[%emt 0:04:42]} Bxf5 {[%emt 0:00:19]} 14. Nd2 {[%emt 0:00:59]} Nf6 {[%emt 0:08:18]} 15. Nc5 {[%emt 0:21:22]} Nd5 {[%emt 0:04:45]} 16. Nde4 {[%emt 0:02:49] Prevents Nc3.} Qf7 {[%emt 0:01:33]} 17. O-O {[%emt 0:05:18]} Qg6 {[%emt 0:03:00]} (17... Nf4 $15 18. Qf3 (18. Bxf4 exf4 19. Rae1 Rhe8 $15) 18... g5) 18. Ng3 $11 {[%emt 0:02:32]} h5 {[%emt 0:02:47][%cal Of5h3]} 19. Nxf5 {[%emt 0:01:47]} (19. Bd2 {seems wilder.} Nf4 20. Bxf4 exf4 21. Nxf5 Qxf5 22. Qe6+) 19... Qxf5 {[%emt 0:00:40]} 20. Ne4 {[%emt 0:00:25]} Be7 {[%emt 0:00:49]} (20... Nf4 {feels hotter.} 21. Qd1 Be7 22. Rb1 Qg6) 21. Ng3 {[%emt 0:03:55]} Qf7 {[%emt 0:06:07]} 22. Bd2 {[%emt 0:00:48]} Rde8 {[%emt 0:05:55]} 23. Rae1 {[%emt 0:00:56]} (23. Qxe5 Bxb4 $1 24. Qg5 Be7 $11) 23... Kb8 {[%emt 0:01:24]} 24. Qe4 {[%emt 0:01:44]} g6 {[%emt 0:02:04]} 25. Qc4 {[%emt 0:01:42]} Bd6 {[%emt 0:03:54]} 26. Re4 {[%emt 0:01:42]} Rhf8 {[%emt 0:02:33]} 27. Bh6 {[%emt 0:00:58]} Rh8 {[%emt 0:00:31]} 28. Bg5 {[%emt 0:00:30]} Ref8 {[%emt 0:00:54]} 29. f3 {[%emt 0:01:51]} Qd7 {[%emt 0:01:30]} 30. Rfe1 {[%emt 0:02:12]} Rf7 {[%emt 0:00:22]} 31. R4e2 {[%emt 0:02:02]} Rhf8 {[%emt 0:01:09]} 32. Bh6 {[%emt 0:01:55]} Rh8 {[%emt 0:00:14]} 33. Bd2 {[%emt 0:00:30]} Rg8 {[%emt 0:00:43]} 34. Rf1 {[%emt 0:01:45]} g5 {[%emt 0:00:56]} 35. Nxh5 {[%emt 0:00:57]} Rh7 {[%emt 0:00:29]} (35... Rff8 $1 $14) 36. Ng3 $16 {[%emt 0:01:09][%cal Bh5g3,Bg3e4,Be4f2,Bf2g4,Bg4e5][%mdl 32]} b5 {[%emt 0:00:29]} 37. Qg4 {[%emt 0:00:34]} Qf7 {[%emt 0:00:36]} 38. Qf5 {[%emt 0:01:11]} (38. Bxg5 $6 Nf4 $11) 38... Qg7 {[%emt 0:00:03]} 39. Ne4 {[%emt 0:00:28]} Be7 {[%emt 0:00:32]} (39... Rh6 {was necessary.} 40. Rc1 (40. Qxg5 $2 Rg6 $19) (40. Bxg5 Rh5 $16) 40... Rf8) 40. Qg4 {[%emt 0:00:33]} (40. Nf2 $18) 40... Qg6 {[%emt 0:00:56]} (40... Nf4 $16 41. Ree1 Qg6) 41. Qg3 {[%emt 0:06:15]} Qe6 {[%emt 0:07:10]} (41... Nf4 $16 42. Ree1 Qf7) 42. Qg4 {[%emt 0:07:39]} (42. Bxg5 Nc3 $1 43. Rfe1 (43. Nxc3 $2 Rxg5 44. Rxe5 Rxe5 $19) 43... Nxe4 44. Rxe4 Rxg5 45. Rxe5 Rxe5 46. Qxe5 Qxe5 47. Rxe5 Bf6 $17) 42... Qg6 {[%emt 0:06:41]} 43. Nf2 {[%emt 0:06:27]} Bd6 {[%emt 0:07:24]} (43... Rh4 $16 {is a better defense.}) 44. Qe4 $18 {[%emt 0:01:27]} Nf4 {[%emt 0:05:38]} 45. Bxf4 {[%emt 0:01:07]} gxf4 {[%emt 0:00:44][%csl Gg8][%cal Rg6g2]} 46. Ng4 {[%emt 0:01:18]} c5 {[%emt 0:01:13]} (46... Qxe4 $142 47. Rxe4 (47. dxe4 Rhg7 $16) (47. fxe4 Rd8 $16) 47... Rhg7) 47. Qxg6 {[%emt 0:03:55]} ({Weaker is} 47. Nxe5 Bxe5 48. Qxe5 Qg3 $11) 47... Rxg6 {[%emt 0:00:01]} 48. Nxe5 {[%emt 0:01:27]} Rg8 {[%emt 0:04:24]} (48... Bxe5 $16 49. Rxe5 cxb4) 49. Ng4 {[%emt 0:02:06] And now Nf6 would win.} Rg5 {[%emt 0:00:29]} 50. c3 {[%emt 0:00:50]} cxb4 {[%emt 0:00:35]} 51. axb4 {[%emt 0:00:12]} c5 {[%emt 0:00:54]} 52. Re6 {[%emt 0:00:08]} Rd7 {[%emt 0:00:37]} 53. Nf6 {[%emt 0:02:12]} Rd8 {[%emt 0:00:09]} 54. bxc5 {[%emt 0:00:59]} Rxc5 {[%emt 0:00:12]} 55. Ne4 {[%emt 0:00:37][%csl LRc5,LRd6]} Rc6 {[%emt 0:00:05]} 56. d4 {[%emt 0:00:52]} Kb7 {[%emt 0:00:26]} 57. Rb1 {[%emt 0:00:24]} Bf8 {[%emt 0:00:07]} 58. Re5 {[%emt 0:00:31]} Kb6 {[%emt 0:00:46]} 59. Rf5 {[%emt 0:00:22]} Bh6 {[%emt 0:00:17]} 60. Kf2 {[%emt 0:00:33]} Rg6 {[%emt 0:00:23]} 61. Rb2 {[%emt 0:00:27]} Bg7 {[%emt 0:00:16]} 62. Kf1 {[%emt 0:00:34]} ({But not} 62. Rxf4 Rxd4 63. h4 Rc4 $18) 62... Bh6 {[%emt 0:00:04]} (62... Rf8 $142) 63. h4 {[%emt 0:00:48][%cal Bh3h4,Bh4h5][%mdl 32] Black must now prevent h5.} Rh8 $2 {[%emt 0:00:30]} (63... Rf8) 64. h5 {[%emt 0:00:46]} Rc6 {[%emt 0:00:14]} 65. d5 {[%emt 0:00:27]} Rc4 {[%emt 0:00:01]} 66. Rf6+ {[%emt 0:00:21]} Ka5 {[%emt 0:00:01]} 67. d6 {[%emt 0:00:30]} (67. Ra2+ $142 Ra4 {[#]} 68. Nc5 $1 b4 69. c4 $1 Rxa2 70. Rxa6#) 67... Bg7 {[%emt 0:00:29] aiming for ...Rxe4.} 68. Rxf4 {[%emt 0:00:23]} Bxc3 {[%emt 0:01:18]} 69. Ra2+ {[%emt 0:00:06]} Kb4 {[%emt 0:00:36]} (69... Kb6 $142 70. d7 Rd8 71. Nxc3 Rxc3 72. Rf6+ Kc5) 70. Rxa6 {[%emt 0:00:19]} Rxh5 {[%emt 0:00:30]} 71. d7 {[%emt 0:00:37]} Rh1+ {[%emt 0:02:09]} 72. Ke2 {[%emt 0:00:10]} Re1+ {[%emt 0:01:30]} 73. Kf2 {[%emt 0:00:57]} Rd1 {[%emt 0:00:30]} 74. Rd6 {[%emt 0:01:02]} Bd4+ {[%emt 0:00:29]} 75. Kg3 {[%emt 0:00:30] Weighted Error Value: White=0.17 (very precise) /Black=0.23 (precise)} 1-0

[Event "SVK ECo-C Extraliga 2021-22"]
[Site "Slovakia"]
[Date "2022.05.07"]
[Round "7.2"]
[White "Hrabusa, Matej"]
[Black "Cernousek, Lukas"]
[Result "1/2-1/2"]
[ECO "A48"]
[WhiteElo "2361"]
[BlackElo "2440"]
[Annotator "TA"]
[PlyCount "99"]
[EventDate "2021.10.21"]
[EventType "team-tourn"]
[EventCountry "SVK"]
[SourceTitle "playchess.com"]
[Source "ChessBase"]
[SourceQuality "1"]
[TimeControl "40/5400+30:1800+30"]

{[%evp 25,99,8,11,3,13,0,0,0,-4,-3,-2,-7,0,0,0,0,0,0,0,-8,0,0,0,0,0,-16,-16,-21,-16,-16,-16,-17,-13,-29,-28,-26,-27,-29,-6,-7,-10,-45,-44,-46,-43,-50,-44,-48,-41,-42,-41,-53,-8,-16,0,-63,-45,-76,-18,-18,0,0,0,-10,-10,-10,0,0,0,0,0,0,0,0,0,0]} 1. d4 {[%emt 0:00:04]} Nf6 {[%emt 0:00:06]} 2. Nf3 {[%emt 0:00:29]} g6 {[%emt 0:00:05]} 3. Nbd2 {[%emt 0:00:45]} c5 {[%emt 0:00:07]} 4. e3 {[%emt 0:00:05]} Bg7 {[%emt 0:00:10]} 5. dxc5 {[%emt 0:00:21]} Qa5 {[%emt 0:00:06]} 6. a3 {[%emt 0:00:24]} Qxc5 {[%emt 0:00:05]} 7. b4 {[%emt 0:02:26]} Qc7 {[%emt 0:00:10]} 8. Bb2 {[%emt 0:00:14]} O-O 9. Be2 {[%emt 0:01:14]} b6 {[%emt 0:00:17]} 10. O-O {[%emt 0:00:42]} Bb7 {[%emt 0:00:05]} 11. c4 {[%emt 0:01:15]} d6 {[%emt 0:00:05]} 12. Qb3 {[%emt 0:00:42]} Nbd7 {[%emt 0:00:05]} 13. Rac1 {[%emt 0:01:03]} Rac8 {[%emt 0:00:07]} 14. Rc2 {[%emt 0:03:52] A48: 1 d4 Nf6 2 Nf3 g6: Torre, London and Colle Systems.} Qb8 15. Rfc1 {[%emt 0:01:36]} Qa8 {[%emt 0:00:47]} 16. Ne1 Rc7 {[%emt 0:04:55]} 17. Bf3 {[%emt 0:03:04]} Rfc8 {[%emt 0:00:18]} 18. h3 {[%emt 0:02:33]} Ne4 {[%emt 0:20:53]} 19. Bxg7 {[%emt 0:09:38]} Nxd2 {[%emt 0:02:43]} 20. Rxd2 {[%emt 0:00:09]} Kxg7 {[%emt 0:00:32]} 21. Bxb7 {[%emt 0:02:53]} Qxb7 {[%emt 0:00:09]} 22. Rdc2 {[%emt 0:05:20]} Qe4 {[%emt 0:13:25]} 23. Nf3 {[%emt 0:02:40]} a6 {[%emt 0:32:20] [#]} 24. Rc3 $146 {[%emt 0:08:15]} ({Predecessor:} 24. Ng5 Qf5 25. f4 h6 26. g4 Qf6 27. Ne4 Qe6 28. Qd3 Nf6 29. Ng3 b5 30. c5 h5 31. gxh5 Qxh3 {0-1 (40) Petrovic,M (2210)-Stankovic,M (2225) Herceg Novi 2001}) 24... Ne5 {[%emt 0:07:02]} 25. Nxe5 {[%emt 0:03:08]} Qxe5 {[%emt 0:00:06]} 26. R3c2 {[%emt 0:03:07]} a5 {[%emt 0:06:27]} 27. Qd3 {[%emt 0:02:00]} axb4 {[%emt 0:01:43]} 28. axb4 {[%emt 0:00:07]} Ra8 {[%emt 0:00:28][%cal Bc8a8,Ba8a4,Ba4a3,Ba3b3][%mdl 32]} 29. Qd4 {[%emt 0:03:57]} (29. f4 {feels hotter.} Qf6 30. Kf2 Rca7 31. c5) 29... Qxd4 {[%emt 0:00:29]} 30. exd4 $11 {[%emt 0:00:10][%mdl 4096] Endgame KRR-KRR} Ra4 {[%emt 0:00:06]} 31. Rb1 {[%emt 0:02:10]} Ra3 {[%emt 0:00:08] Threatening ...Rd3.} 32. c5 $1 {[%emt 0:02:34]} Kf6 {[%emt 0:08:19]} 33. Rbc1 {[%emt 0:07:00]} Rb3 {[%emt 0:03:24]} 34. cxd6 {[%emt 0:01:33]} Rxc2 {[%emt 0:00:07]} 35. Rxc2 {[%emt 0:00:07] [#] Black must now prevent d7.} exd6 $15 {[%emt 0:01:18] KR-KR} 36. Rc6 {[%emt 0:00:11][%csl LRb6,LRd6]} Rxb4 {[%emt 0:00:15] And now ...Ke6 would win.} 37. Rxd6+ {[%emt 0:00:13]} Ke7 {[%emt 0:00:07]} 38. Rc6 {[%emt 0:00:43]} Kd7 {[%emt 0:01:16]} 39. Rf6 {[%emt 0:01:55]} Ke7 {[%emt 0:00:08]} (39... Rb1+ $11 40. Kh2 Ke7) 40. Rc6 {[%emt 0:00:07]} b5 {[%emt 0:00:46]} ({Much weaker is} 40... Rxd4 41. Rxb6 h5 42. Kf1 $11) 41. Rb6 {[%emt 0:32:16]} Rb1+ {[%emt 0:30:50]} ({Don't play} 41... Rxd4 42. Rxb5 h5 43. Kf1 $11) (41... Kd7 $17) 42. Kh2 $11 {[%emt 0:00:11] The position is equal.} b4 {[%emt 0:00:07]} 43. d5 {[%emt 0:02:28][%cal Bd4d5,Bd5d6][%mdl 32]} b3 {[%emt 0:00:44]} 44. d6+ {[%emt 0:00:14]} Ke6 {[%emt 0:00:00]} 45. h4 {[%emt 0:00:00]} h5 {[%emt 0:00:00]} 46. g3 {[%emt 0:00:00]} f6 {[%emt 0:00:00]} 47. Kg2 {[%emt 0:00:00]} g5 {[%emt 0:00:00]} 48. hxg5 {[%emt 0:00:00]} fxg5 {[%emt 0:00:00]} 49. Kh2 {[%emt 0:00:00]} Kd7 {[%emt 0:00:00]} (49... g4 $5) 50. Kg2 {[%emt 0:00:00] Weighted Error Value: White=0.05 (flawless) /Black=0.08 (flawless)} 1/2-1/2

[Event "SVK ECo-C Extraliga 2021-22"]
[Site "Slovakia"]
[Date "2022.05.08"]
[Round "7.2"]
[White "Bombek Peter"]
[Black "Balogh, Peter"]
[Result "1/2-1/2"]
[ECO "A45"]
[WhiteElo "2078"]
[BlackElo "2267"]
[Annotator "TA"]
[PlyCount "35"]
[EventDate "2021.10.21"]
[EventType "team-tourn"]
[EventCountry "SVK"]
[SourceTitle "playchess.com"]
[Source "ChessBase"]
[SourceQuality "1"]
[TimeControl "40/5400+30:1800+30"]

{[%evp 14,35,9,6,13,7,13,12,12,19,16,33,72,0,26,16,9,0,7,-16,-11,-11,-15,-35]} 1. d4 {[%emt 0:30:05]} Nf6 {[%emt 0:31:01]} 2. Bg5 {[%emt 0:00:13]} Ne4 {[%emt 0:00:16]} 3. Bf4 {[%emt 0:00:02]} d5 {[%emt 0:00:39]} 4. e3 {[%emt 0:00:33]} Bf5 {[%emt 0:00:18]} 5. Nd2 {[%emt 0:00:30]} e6 {[%emt 0:00:24]} 6. Bd3 {[%emt 0:01:18]} Nxd2 {[%emt 0:00:41]} 7. Qxd2 {[%emt 0:00:40]} Bxd3 {[%emt 0:00:09]} 8. Qxd3 {[%emt 0:00:17]} c5 {[%emt 0:00:55] A45: Trompowsky Attack.} 9. Nf3 {[%emt 0:05:44]} c4 {[%emt 0:03:04]} 10. Qe2 {[%emt 0:00:42] [#]} Nd7 $146 {[%emt 0:01:54]} ({Predecessor:} 10... Nc6 11. O-O Bd6 12. Bxd6 Qxd6 13. e4 O-O 14. Rfe1 Rfd8 15. e5 Qe7 16. Qd2 h6 {1-0 (29) Zinani,A (2240)-Davi,A (2009) Bratto 2008}) 11. O-O {[%emt 0:00:40]} Nf6 {[%emt 0:00:38]} 12. b3 {[%emt 0:05:19]} Rc8 {[%emt 0:03:57] [#]} 13. Ne5 {[%emt 0:04:26]} (13. bxc4 $1 $16 {Rfb1 is the strong threat.} dxc4 14. e4) 13... Nd7 {[%emt 0:11:35]} 14. e4 $1 {[%emt 0:04:02]} Nxe5 {[%emt 0:04:44] The position is equal.} 15. Bxe5 {[%emt 0:01:01]} dxe4 {[%emt 0:07:35]} 16. Qxe4 {[%emt 0:05:35]} ({Don't play} 16. bxc4 f6 17. Rfe1 fxe5 $17) 16... Qd5 {[%emt 0:01:56]} 17. Qxd5 {[%emt 0:07:33]} exd5 {[%emt 0:00:24]} 18. Rfe1 {[%emt 0:00:51] Weighted Error Value: White=0.10 (very precise) /Black=0.09 (flawless)} 1/2-1/2

[Event "SVK ECo-C Extraliga 2021-22"]
[Site "Slovakia"]
[Date "2022.05.08"]
[Round "7.3"]
[White "Balogh, Csaba"]
[Black "Vymazal, Bronislav"]
[Result "1-0"]
[ECO "B00"]
[WhiteElo "2586"]
[BlackElo "2380"]
[Annotator "TA"]
[PlyCount "95"]
[EventDate "2021.10.21"]
[EventType "team-tourn"]
[EventCountry "SVK"]
[SourceTitle "playchess.com"]
[Source "ChessBase"]
[SourceQuality "1"]
[TimeControl "40/5400+30:1800+30"]

{[%evp 9,95,26,28,29,32,27,34,30,50,41,98,103,95,93,98,95,117,128,130,109,123,110,126,116,104,85,144,137,172,114,104,73,65,56,51,58,54,46,44,47,52,56,47,56,52,44,73,76,84,85,97,97,112,85,101,103,85,93,97,40,38,40,40,35,45,42,52,43,45,50,194,194,257,247,234,219,206,193,265,177,237,208,550,564,614,575,6154,6039]} 1. e4 {[%emt 0:00:14]} b6 {[%emt 0:00:46]} 2. d4 {[%emt 0:01:40]} Bb7 {[%emt 0:00:04]} 3. Nc3 {[%emt 0:07:56]} e6 {[%emt 0:00:07]} 4. Bd3 {[%emt 0:02:07]} Nf6 {[%emt 0:00:08]} 5. Qe2 {[%emt 0:04:06]} Bb4 {[%emt 0:02:21]} 6. Bd2 {[%emt 0:09:57][%cal Bc1d2,Bd2c3,Bc3g7,Bg7e5][%mdl 32] B00: Queen's Fianchetto Defence, Nimzowitsch Defence.} c5 {[%emt 0:15:07]} 7. Nf3 {[%emt 0:07:55]} Bxc3 {[%emt 0:26:52]} 8. Bxc3 {[%emt 0:00:20] White is slightly better.} ({Don't play} 8. bxc3 c4 9. Bxc4 Nxe4 $11) 8... c4 {[%emt 0:03:00]} 9. Bxc4 {[%emt 0:00:09] Strongly threatening e5.} Bxe4 {[%emt 0:01:36]} ({Black should try} 9... Nxe4 $14 10. Bb4 d6) 10. d5 $1 $16 {[%emt 0:07:56] [#]} Bxd5 $146 {[%emt 0:00:34]} ({Predecessor:} 10... Bg6 11. dxe6 fxe6 12. Bb4 Nc6 13. Ba3 Ne4 14. O-O Qf6 15. Rad1 Rd8 16. Bd3 Nc5 17. Bb5 Ne7 18. Ne5 Nd5 19. Rxd5 exd5 20. Nxd7+ Qe7 21. Nxc5+ Kf7 22. Qxe7+ {1-0 (22) Sorsa,N (2222)-Jarvela,J Naantali 2000}) 11. Bxd5 {[%emt 0:00:16]} Nxd5 {[%emt 0:00:07]} 12. Bxg7 {[%emt 0:00:07]} Rg8 {[%emt 0:00:07]} 13. Be5 {[%emt 0:00:12]} Nc6 {[%emt 0:05:56]} 14. Bg3 {[%emt 0:17:55]} Rg7 {[%emt 0:07:41]} 15. O-O {[%emt 0:05:30]} Kf8 {[%emt 0:02:16]} 16. Rad1 {[%emt 0:00:10]} Nde7 {[%emt 0:10:12]} 17. Ne5 {[%emt 0:03:52]} d5 {[%emt 0:00:25]} ({Black should play} 17... Nxe5 18. Bxe5 (18. Qxe5 Nf5 $14) 18... Rg6) 18. c4 {[%emt 0:00:40]} Rc8 {[%emt 0:00:42] [#]} 19. cxd5 {[%emt 0:07:58]} (19. Rfe1 $1 $18) 19... Nxd5 {[%emt 0:00:20]} 20. Nxc6 {[%emt 0:00:21]} Rxc6 {[%emt 0:00:08]} 21. Rc1 {[%emt 0:00:08]} Qc8 {[%emt 0:02:20]} 22. Qd2 {[%emt 0:00:44]} f6 {[%emt 0:03:00]} 23. Rxc6 {[%emt 0:03:00]} Qxc6 {[%emt 0:00:04]} 24. Rc1 {[%emt 0:00:05]} Qe8 {[%emt 0:00:19]} 25. h3 {[%emt 0:01:47]} Kg8 {[%emt 0:01:31]} 26. Rc4 {[%emt 0:00:31]} Rd7 {[%emt 0:06:32]} 27. Qe2 {[%emt 0:00:56]} Kh8 {[%emt 0:04:55]} 28. Rc6 {[%emt 0:03:40][%cal Bc4c6,Bc6d6,Bd6d7][%mdl 32]} Re7 {[%emt 0:02:18]} 29. Rd6 {[%emt 0:01:09]} Qf7 {[%emt 0:01:48]} 30. Kh2 {[%emt 0:04:16]} Re8 {[%emt 0:00:07]} 31. Qb5 {[%emt 0:00:42]} Kg7 {[%emt 0:02:52]} 32. Rd7 {[%emt 0:00:50]} Re7 {[%emt 0:00:04]} 33. Rd8 {[%emt 0:00:05] Black must now prevent Bd6.} Nc7 {[%emt 0:00:22]} 34. Qc6 {[%emt 0:05:11] White is much more active.} ({Better is} 34. Qa4 $16 {And now Bd6 would win.} e5 35. Qg4+ Qg6 36. Qc8 (36. Qc4 Ne6 $11)) 34... e5 $1 $14 {[%emt 0:00:30]} 35. Bh4 {[%emt 0:00:08][%cal Oh4f6] Threatens to win with Bxf6+!} Ne6 {[%emt 0:00:54]} 36. Rd6 $36 {[%emt 0:01:13][%mdl 2048] White is more active.} h6 {[%emt 0:00:27]} 37. Qc8 {[%emt 0:02:13]} Re8 {[%emt 0:01:20]} 38. Qc4 {[%emt 0:00:35]} Ng5 {[%emt 0:00:29]} 39. Qg4 {[%emt 0:01:02]} Re6 {[%emt 0:00:33] [#] This move loses the game for Black.} (39... Qf8 $14 40. Rc6 Re7) 40. Rxe6 $1 $18 {[%emt 0:00:26]} Qxe6 {[%emt 0:00:14]} (40... f5 $142 41. Re7 fxg4 42. Rxf7+ Kxf7 43. hxg4 Ne6) 41. Bxg5 {[%emt 0:30:06]} f5 {[%emt 0:03:09]} 42. Qh5 {[%emt 0:00:00]} hxg5 {[%emt 0:00:13]} 43. Qxg5+ {[%emt 0:00:00] KQ-KQ} Kh7 {[%emt 0:02:51]} (43... Kf7 {was worth a try.} 44. h4 e4) 44. b3 {[%emt 0:00:00]} Qf7 {[%emt 0:01:07]} (44... f4 $142 45. h4 a6) 45. Kg3 {[%emt 0:00:00]} Qe6 $2 {[%emt 0:01:16]} (45... Qf8 {is tougher.} 46. h4 Qf7) 46. Kh4 {[%emt 0:00:00] White is clearly winning.} a5 {[%emt 0:00:30]} 47. g4 {[%emt 0:00:00]} fxg4 {[%emt 0:00:07]} 48. Qh5+ {[%emt 0:00:00] Weighted Error Value: White=0.08 (flawless) /Black=0.27 (precise)} 1-0